bitfinex-derivatives/quotes_BTCF0:USTF0_20260214
["timestamp","ask_amount","ask_price","bid_price","bid_amount"]
[1771059066838,0.01452,69764.0,69756.0,0.014343]
[1771059067227,0.028862,69764.0,69756.0,0.014343]
[1771059067428,0.014342,69760.0,69753.0,0.0002]
[1771059067627,0.14336,69766.0,69752.0,0.014344]
[1771059067628,0.01452,69759.0,69752.0,0.014344]
[1771059067829,0.01452,69760.0,69753.0,0.36485734]
[1771059068034,0.01452,69760.0,69754.0,0.014343]
[1771059068240,0.014343,69757.0,69750.0,0.01452]
[1771059068425,0.014343,69757.0,69751.0,0.028686]
[1771059068629,0.014343,69756.0,69751.0,0.028686]
[1771059068831,0.014343,69757.0,69751.0,0.028686]
[1771059069336,0.028863,69756.0,69748.0,0.14316]
[1771059069637,0.028863,69755.0,69746.0,0.014345]
[1771059070036,0.014344,69753.0,69744.0,0.028865]
[1771059070238,0.014344,69754.0,69744.0,0.01452]
[1771059070439,0.014345,69747.0,69738.0,0.1434]
[1771059070636,0.014345,69749.0,69740.0,0.014346]
[1771059070934,0.01452,69750.0,69740.0,0.014346]
[1771059071131,0.01452,69749.0,69745.0,0.35051334]
[1771059071333,0.01452,69749.0,69745.0,0.36485834]
[1771059071841,0.014342,69762.0,69751.0,0.36485734]
[1771059072042,0.014342,69759.0,69751.0,0.36485734]
[1771059072232,0.014342,69760.0,69751.0,0.014344]
[1771059072427,0.15792,69759.0,69751.0,0.014344]
[1771059072735,0.15668951,69759.0,69751.0,0.014344]
[1771059072933,0.014343,69758.0,69750.0,0.014344]
[1771059073237,0.15668951,69759.0,69750.0,0.014344]
[1771059073632,0.014343,69758.0,69750.0,0.014344]
[1771059074234,0.014343,69758.0,69747.0,0.35051334]
[1771059074433,0.014343,69758.0,69744.0,0.01452]
[1771059074434,0.014343,69755.0,69745.0,0.014345]
[1771059074639,0.01452,69754.0,69748.0,0.014345]
[1771059074840,0.01452,69754.0,69742.0,0.36503334]
[1771059074841,0.014344,69753.0,69742.0,0.36503334]
[1771059075138,0.01452,69754.0,69746.0,0.014345]
[1771059075335,0.01452,69754.0,69749.0,0.35051334]
[1771059075731,0.014343,69757.0,69749.0,0.35051334]
[1771059075940,0.01452,69754.0,69749.0,0.35051334]
[1771059076143,0.014343,69757.0,69749.0,0.35051334]
[1771059076436,0.01452,69756.0,69749.0,0.35051334]
[1771059076630,0.028863,69756.0,69748.0,0.014345]
[1771059078041,0.028863,69756.0,69726.0,0.6652638]
[1771059078042,0.1329662,69775.0,69753.0,0.35051334]
[1771059078234,0.01434,69770.0,69763.0,0.35051334]
[1771059078437,0.02886,69769.0,69763.0,0.35051334]
[1771059078634,0.14344,69774.0,69760.0,0.36485534]
[1771059078635,0.01434,69770.0,69760.0,0.36485534]
[1771059078835,0.028861,69769.0,69760.0,0.36485534]
[1771059079440,0.028861,69769.0,69760.0,0.35051334]
[1771059079644,0.014341,69767.0,69759.0,0.014342]
[1771059079940,0.014341,69768.0,69759.0,0.014342]
[1771059080243,0.014341,69768.0,69760.0,0.014342]
[1771059080430,0.01452,69769.0,69761.0,0.014342]
[1771059081041,0.01452,69769.0,69760.0,0.35051334]
[1771059081042,0.02886,69769.0,69760.0,0.36485534]
[1771059081436,0.014341,69768.0,69759.0,0.014342]
[1771059081743,0.02886,69769.0,69760.0,0.36485534]
[1771059082143,0.043201,69769.0,69760.0,0.36485534]
[1771059082442,0.02886,69769.0,69760.0,0.36485534]
[1771059082942,0.014341,69768.0,69760.0,0.36485534]
[1771059083836,0.01452,69769.0,69760.0,0.36485534]
[1771059084234,0.01434,69773.0,69760.0,0.36485534]
[1771059084544,0.01434,69773.0,69761.0,0.36485534]
[1771059084545,0.01434,69770.0,69761.0,0.36485534]
[1771059084744,0.01448,69769.0,69761.0,0.36485534]
[1771059084943,0.01434,69770.0,69762.0,0.014342]
[1771059085246,0.014341,69768.0,69759.0,0.36485534]
[1771059085543,0.014341,69768.0,69759.0,0.37933534]
[1771059086036,0.014341,69768.0,69759.0,0.39367734]
[1771059086238,0.014341,69768.0,69759.0,0.37933534]
[1771059086831,0.014341,69767.0,69759.0,0.37933534]
[1771059087343,0.028821,69769.0,69759.0,0.37933534]
[1771059087645,0.014341,69766.0,69759.0,0.01448]
[1771059087840,0.014341,69766.0,69753.0,0.014344]
[1771059087841,0.13266003,69761.0,69734.0,0.35051334]
[1771059088141,0.014341,69767.0,69735.0,0.50842334]
[1771059088142,0.014346,69744.0,69735.0,0.50842334]
[1771059088338,0.014345,69747.0,69738.0,0.014347]
[1771059088537,0.014345,69747.0,69739.0,0.01452]
[1771059088940,0.01452,69749.0,69742.0,0.028688]
[1771059089241,0.01452,69749.0,69740.0,0.028689]
[1771059089445,0.028865,69749.0,69741.0,0.028688]
[1771059089645,0.028865,69749.0,69740.0,0.028689]
[1771059089835,0.01452,69751.0,69745.0,0.35051334]
[1771059090032,0.028864,69752.0,69745.0,0.35051334]
[1771059090236,0.01533506,69752.0,69745.0,0.35051334]
[1771059090441,0.01434,69770.0,69756.0,0.35051334]
[1771059090740,0.014341,69768.0,69759.0,0.36485534]
[1771059090945,0.02881,69770.0,69760.0,0.36503334]
[1771059091145,0.014341,69767.0,69760.0,0.36503334]
[1771059091335,0.014341,69768.0,69760.0,0.01452]
[1771059091336,0.014342,69764.0,69760.0,0.01452]
[1771059091536,0.01452,69770.0,69760.0,0.01452]
[1771059091537,0.014341,69767.0,69760.0,0.01452]
[1771059091735,0.014341,69766.0,69760.0,0.01452]
[1771059092141,0.014341,69766.0,69760.0,0.043208]
[1771059092341,0.014341,69767.0,69760.0,0.043208]
[1771059092542,0.014341,69767.0,69760.0,0.01452]
[1771059092742,0.014341,69765.0,69760.0,0.01452]
[1771059092940,0.014342,69763.0,69759.0,0.01452]
[1771059093144,0.01452,69764.0,69749.0,0.028864]
[1771059093335,0.01452,69764.0,69757.0,0.37930382]
[1771059094639,0.014341,69764.0,69757.0,0.39382382]
[1771059094945,0.014342,69761.0,69757.0,0.01452]
[1771059095338,0.014342,69761.0,69758.0,0.028688]
[1771059095538,0.014341,69764.0,69758.0,0.028688]
[1771059095746,0.014342,69760.0,69755.0,0.01452]
[1771059096045,0.014342,69761.0,69755.0,0.43685482]
[1771059096244,0.014342,69761.0,69755.0,0.40816682]
[1771059096442,0.014342,69761.0,69757.0,0.028688]
[1771059096837,0.014342,69761.0,69758.0,0.028688]
[1771059097042,0.014342,69761.0,69756.0,0.014343]
[1771059097346,0.014342,69761.0,69757.0,0.028688]
[1771059097739,0.014342,69761.0,69756.0,0.014343]
[1771059097938,0.014342,69761.0,69757.0,0.028688]
[1771059098343,0.01452,69764.0,69760.0,0.37930382]
[1771059098845,0.01452,69766.0,69760.0,0.37930382]
[1771059100141,0.014341,69768.0,69760.0,0.37930382]
[1771059100336,0.01434,69770.0,69763.0,0.38795308]
[1771059100541,0.01434,69769.0,69763.0,0.38795308]
[1771059100739,0.028861,69768.0,69763.0,0.38795308]
[1771059100939,0.014341,69767.0,69764.0,0.028688]
[1771059101145,0.014341,69765.0,69763.0,0.014343]
[1771059101445,0.014341,69767.0,69763.0,0.014343]
[1771059102140,0.014341,69764.0,69758.0,0.40247308]
[1771059102341,0.014342,69763.0,69758.0,0.01452]
[1771059102643,0.014338,69782.0,69769.0,0.01434]
[1771059102949,0.014339,69777.0,69769.0,0.38795308]
[1771059103242,0.014339,69777.0,69769.0,0.28756508]
[1771059103243,0.01448,69776.0,69769.0,0.28756508]
[1771059103446,0.01448,69776.0,69769.0,0.30190508]
[1771059103749,0.01448,69776.0,69771.0,0.38795308]
[1771059104144,0.01448,69779.0,69771.0,0.40229308]
[1771059104654,0.01448,69779.0,69771.0,0.38795308]
[1771059104849,0.028818,69779.0,69771.0,0.38795308]
[1771059105148,0.014286,69792.0,69783.0,0.38795308]
[1771059105345,0.014335,69795.0,69785.0,0.38795308]
[1771059105551,0.028855,69794.0,69785.0,0.38795308]
[1771059105746,0.01452,69794.0,69790.0,0.014336]
[1771059105958,0.01452,69794.0,69788.0,0.40228908]
[1771059106346,0.014334,69798.0,69789.0,0.40247308]
[1771059106347,0.01452,69797.0,69789.0,0.40247308]
[1771059107148,0.051166,69802.0,69789.0,0.41680908]
[1771059107349,0.014334,69799.0,69789.0,0.41680908]
[1771059107550,0.01452,69801.0,69789.0,0.40247308]
[1771059107751,0.014334,69799.0,69789.0,0.41680908]
[1771059107952,0.014335,69795.0,69789.0,0.40247308]
[1771059108143,0.014335,69794.0,69789.0,0.01452]
[1771059108850,0.01452,69797.0,69790.0,0.014336]
[1771059109154,0.014335,69794.0,69789.0,0.01452]
[1771059110147,0.014335,69793.0,69789.0,0.01452]
[1771059110947,0.51719893,69793.0,69773.0,0.38795308]
[1771059111255,0.014336,69789.0,69779.0,0.014338]
[1771059111451,0.014336,69791.0,69781.0,0.014338]
[1771059111452,0.01448,69788.0,69781.0,0.014338]
[1771059111649,0.014336,69789.0,69780.0,0.41677108]
[1771059113158,0.014337,69788.0,69780.0,0.01448]
[1771059113355,0.014337,69788.0,69780.0,0.028818]
[1771059113553,0.014336,69789.0,69780.0,0.41677108]
[1771059114759,0.014336,69789.0,69780.0,0.028818]
[1771059115263,0.014337,69788.0,69780.0,0.028818]
[1771059115454,0.014336,69789.0,69780.0,0.028818]
[1771059115657,0.014337,69786.0,69780.0,0.01448]
[1771059115857,0.028817,69787.0,69780.0,0.01448]
[1771059116055,0.014337,69786.0,69780.0,0.01448]
[1771059116354,0.01448,69787.0,69778.0,0.028818]
[1771059116947,0.01448,69787.0,69772.0,0.53139308]
[1771059117152,0.014338,69779.0,69773.0,0.01448]
[1771059117353,0.014338,69779.0,69771.0,0.01434]
[1771059117354,0.014339,69778.0,69771.0,0.01434]
[1771059117659,0.014338,69781.0,69772.0,0.01448]
[1771059117860,0.01434,69774.0,69771.0,0.01448]
[1771059118353,0.014339,69777.0,69771.0,0.01448]
[1771059118559,0.02868,69773.0,69771.0,0.01448]
[1771059118759,0.01434,69773.0,69768.0,0.01448]
[1771059119161,0.01434,69772.0,69768.0,0.01448]
[1771059119370,0.01434,69774.0,69768.0,0.01448]
[1771059119560,0.01434,69773.0,69767.0,0.15788]
[1771059119759,0.01434,69774.0,69767.0,0.15788]
[1771059120060,0.014339,69775.0,69767.0,0.15788]
[1771059120452,0.01448,69778.0,69770.0,0.01434]
[1771059122165,0.014339,69774.0,69765.0,0.38467737]
[1771059122367,0.014339,69775.0,69766.0,0.028821]
[1771059122659,0.01448,69778.0,69766.0,0.01448]
[1771059122856,0.36746551,69778.0,69766.0,0.01448]
[1771059123056,0.01434,69771.0,69764.0,0.01448]
[1771059123257,0.01434,69770.0,69764.0,0.01448]
[1771059123659,0.01434,69769.0,69764.0,0.01448]
[1771059124060,0.01434,69770.0,69764.0,0.01448]
[1771059124264,0.01434,69771.0,69764.0,0.01448]
[1771059124660,0.02882,69772.0,69764.0,0.01448]
[1771059126665,0.02882,69772.0,69764.0,0.39915737]
[1771059126964,0.01448,69772.0,69765.0,0.014341]
[1771059127167,0.014337,69788.0,69776.0,0.39901637]
[1771059127364,0.014336,69791.0,69776.0,0.01448]
[1771059127365,0.014338,69783.0,69776.0,0.01448]
[1771059127563,0.014338,69781.0,69771.0,0.02882]
[1771059127765,0.014336,69790.0,69776.0,0.39901637]
[1771059127766,0.01448,69782.0,69776.0,0.39901637]
[1771059127963,0.01448,69785.0,69776.0,0.41349637]
[1771059128262,0.35298551,69770.0,69751.0,0.64268985]
[1771059128461,0.716901,69783.0,69752.0,0.014344]
[1771059128462,0.014342,69762.0,69752.0,0.014344]
[1771059128662,0.014342,69763.0,69753.0,0.39902137]
[1771059128868,0.014341,69764.0,69755.0,0.38467737]
[1771059129170,0.014341,69765.0,69756.0,0.39915737]
[1771059129370,0.014341,69765.0,69756.0,0.41350037]
[1771059131870,0.01448,69766.0,69757.0,0.39902037]
[1771059132066,0.02882,69771.0,69763.0,0.38467737]
[1771059132364,0.014337,69786.0,69763.0,0.38467737]
[1771059132365,0.014336,69790.0,69770.0,0.38467737]
[1771059132570,0.01448,69789.0,69779.0,0.06101537]
[1771059132762,0.014337,69788.0,69779.0,0.08983337]
[1771059132963,0.01448,69789.0,69779.0,0.07549537]
[1771059133162,0.014337,69787.0,69779.0,0.07549537]
[1771059133363,0.01448,69789.0,69779.0,0.03219636]
[1771059133564,0.014339,69776.0,69770.0,0.01448]
[1771059133769,0.014339,69778.0,69770.0,0.01448]
[1771059133966,0.014339,69776.0,69770.0,0.01448]
[1771059134165,0.014339,69777.0,69770.0,0.01448]
[1771059134566,0.014339,69776.0,69770.0,0.01448]
[1771059134868,0.014339,69778.0,69767.0,0.01448]
[1771059135074,0.01434,69771.0,69767.0,0.01448]
[1771059135364,0.01434,69771.0,69766.0,0.01448]
[1771059135566,0.01434,69770.0,69766.0,0.01448]
[1771059135771,0.02868,69770.0,69765.0,0.14344]
[1771059135971,0.01434,69769.0,69765.0,0.085951]
[1771059136170,0.01434,69770.0,69765.0,0.085951]
[1771059136768,0.01434,69771.0,69765.0,0.085951]
[1771059137473,0.01434,69770.0,69765.0,0.085951]
[1771059137868,0.01434,69770.0,69757.0,0.028823]
[1771059137869,0.014341,69768.0,69757.0,0.028823]
[1771059138071,0.028821,69769.0,69760.0,0.014342]
[1771059138266,0.01448,69771.0,69762.0,0.39901937]
[1771059138466,0.01448,69771.0,69764.0,0.38467737]
[1771059138668,0.014339,69776.0,69766.0,0.38467737]
[1771059138869,0.01448,69775.0,69766.0,0.38467737]
[1771059139273,0.014339,69774.0,69766.0,0.38467737]
[1771059139775,0.01448,69773.0,69766.0,0.38467737]
[1771059140770,0.02882,69773.0,69764.0,0.028821]
[1771059140967,0.36732551,69769.0,69750.0,0.014344]
[1771059141265,0.014343,69759.0,69751.0,0.15792]
[1771059141469,0.014341,69767.0,69751.0,0.15792]
[1771059141666,0.014342,69764.0,69751.0,0.15792]
[1771059141864,0.014342,69762.0,69752.0,0.014344]
[1771059142176,0.01448,69764.0,69751.0,0.55694137]
[1771059142377,0.014342,69761.0,69752.0,0.3273329]
[1771059142876,0.014342,69761.0,69752.0,0.18396784]
[1771059143080,0.014342,69761.0,69752.0,0.12662931]
[1771059143264,0.014342,69763.0,69753.0,0.014344]
[1771059143468,0.014342,69763.0,69754.0,0.01448]
[1771059143665,0.028684,69763.0,69755.0,0.01448]
[1771059143868,0.014342,69762.0,69756.0,0.01448]
[1771059144069,0.01448,69767.0,69758.0,0.014343]
[1771059144271,0.014341,69766.0,69760.0,0.38467737]
[1771059144468,0.01448,69767.0,69760.0,0.38467737]
[1771059144469,0.01448,69767.0,69760.0,0.31300203]
[1771059144675,0.01420196,69768.0,69760.0,0.24132772]
[1771059144879,0.02854296,69768.0,69760.0,0.16965341]
[1771059145073,0.014341,69767.0,69760.0,0.16965341]
[1771059145274,0.014341,69767.0,69760.0,0.0979791]
[1771059145579,0.02854296,69768.0,69759.0,0.028822]
[1771059146078,0.014341,69767.0,69759.0,0.01448]
[1771059146273,0.043162,69767.0,69759.0,0.01448]
[1771059146466,0.014342,69762.0,69758.0,0.01448]
[1771059146671,0.014342,69762.0,69756.0,0.01448]
[1771059146875,0.014342,69762.0,69755.0,0.01448]
[1771059147076,0.014342,69761.0,69755.0,0.01448]
[1771059147383,0.01448,69764.0,69758.0,0.28516554]
[1771059147583,0.01448,69764.0,69758.0,0.21348609]
[1771059147880,0.01448,69765.0,69759.0,0.12732973]
[1771059148077,0.01448,69765.0,69759.0,0.05565336]
[1771059148382,0.01448,69765.0,69756.0,0.07295027]
[1771059148675,0.01448,69765.0,69758.0,0.014343]
[1771059148881,0.01448,69765.0,69757.0,0.014343]
[1771059149179,0.01448,69765.0,69756.0,0.01448]
[1771059149386,0.01448,69765.0,69756.0,0.028823]
[1771059149583,0.01448,69765.0,69756.0,0.01448]
[1771059150069,0.028821,69765.0,69756.0,0.028823]
[1771059150276,0.42396223,69764.0,69750.0,0.04434645]
[1771059150581,0.014342,69760.0,69752.0,0.014344]
[1771059150775,0.01448,69760.0,69746.0,0.12926317]
[1771059150980,0.01448,69760.0,69727.0,0.1437495]
[1771059150981,0.014346,69743.0,69731.0,0.014348]
[1771059151277,0.014346,69742.0,69733.0,0.11485865]
[1771059151483,0.01448,69747.0,69734.0,0.014348]
[1771059151783,0.014345,69745.0,69734.0,0.01180068]
[1771059151981,0.014346,69744.0,69727.0,0.014349]
[1771059152177,0.014346,69744.0,69735.0,0.01448]
[1771059152377,0.014346,69743.0,69736.0,0.01448]
[1771059152577,0.014346,69742.0,69736.0,0.01448]
[1771059153088,0.00011384,69741.0,69736.0,0.01448]
[1771059153282,0.014346,69744.0,69736.0,0.01448]
[1771059153478,0.014346,69743.0,69736.0,0.01448]
[1771059153677,0.014346,69743.0,69736.0,0.028827]
[1771059153877,0.014346,69741.0,69735.0,0.01448]
[1771059154281,0.014346,69741.0,69734.0,0.014348]
[1771059154586,4.3e-07,69728.0,69727.0,0.0154621]
[1771059154882,0.014346,69741.0,69732.0,0.014348]
[1771059155085,0.014346,69741.0,69734.0,0.014348]
[1771059155277,1.1e-07,69728.0,69722.0,0.01435]
[1771059155473,9.4e-07,69728.0,69725.0,0.014349]
[1771059155678,0.014346,69740.0,69734.0,0.014347]
[1771059155884,0.014346,69740.0,69735.0,0.01448]
[1771059156286,2.8e-07,69728.0,69726.0,0.014349]
[1771059156580,0.014347,69739.0,69727.0,0.01448]
[1771059156784,9.4e-07,69728.0,69727.0,0.01448]
[1771059156986,0.028694,69739.0,69733.0,0.014348]
[1771059157187,0.014347,69739.0,69734.0,0.028827]
[1771059157486,3.5e-07,69728.0,69727.0,0.014349]
[1771059157688,0.014347,69739.0,69734.0,0.014348]
[1771059157873,0.014347,69738.0,69734.0,0.014347]
[1771059158073,0.014347,69738.0,69734.0,0.028827]
[1771059158284,1.1e-07,69728.0,69725.0,0.014349]
[1771059158484,0.02866049,69728.0,69726.0,0.01448]
[1771059158779,0.44539997,69747.0,69726.0,0.01448]
[1771059158780,0.01448,69747.0,69726.0,0.01448]
[1771059158982,0.028692,69742.0,69736.0,0.014347]
[1771059159183,0.014346,69742.0,69734.0,0.01448]
[1771059159386,0.02866766,69741.0,69734.0,0.01448]
[1771059159682,4.9e-07,69728.0,69727.0,0.014349]
[1771059159879,0.02866766,69740.0,69737.0,0.014347]
[1771059160079,0.014346,69742.0,69735.0,0.014347]
[1771059160287,0.014346,69742.0,69734.0,0.01448]
[1771059160481,6.2e-07,69728.0,69724.0,0.0287]
[1771059160786,9.6e-07,69728.0,69727.0,0.014349]
[1771059161083,0.0286681,69741.0,69728.0,0.00270308]
[1771059161288,7.2e-07,69728.0,69724.0,0.01435]
[1771059161482,0.014347,69736.0,69725.0,0.01447928]
[1771059161688,0.014345,69745.0,69726.0,0.01448]
[1771059161981,0.014346,69743.0,69726.0,0.01448]
[1771059162187,0.014346,69743.0,69739.0,0.014347]
[1771059162387,0.01448,69743.0,69735.0,0.014347]
[1771059162577,0.01448,69743.0,69733.0,0.01448]
[1771059162776,0.028826,69743.0,69733.0,0.01448]
[1771059163284,0.028826,69743.0,69738.0,0.014347]
[1771059163583,0.028826,69743.0,69733.0,0.01448]
[1771059163787,0.028826,69743.0,69738.0,0.014347]
[1771059163990,6.4e-07,69728.0,69727.0,0.014349]
[1771059164188,0.01448,69743.0,69727.0,0.014349]
[1771059164189,0.01448,69743.0,69727.0,0.01448]
[1771059164585,0.01448,69743.0,69739.0,0.014347]
[1771059164785,0.01448,69743.0,69733.0,0.01448]
[1771059164988,0.01448,69743.0,69732.0,0.01448]
[1771059165293,0.028826,69743.0,69732.0,0.01448]
[1771059165697,0.01448,69743.0,69738.0,0.014347]
[1771059165899,4.9e-07,69728.0,69727.0,0.014349]
[1771059166089,0.01448,69743.0,69736.0,0.014347]
[1771059166289,0.01448,69743.0,69739.0,0.014346]
[1771059166690,0.014344,69754.0,69725.0,0.717489]
[1771059166885,5.3e-07,69734.0,69730.0,0.014348]
[1771059167089,0.157821,69767.0,69749.0,0.00314246]
[1771059167387,0.028821,69766.0,69761.0,0.014342]
[1771059167592,0.028821,69766.0,69750.0,0.00017519]
[1771059167793,0.028821,69766.0,69680.0,1.43518315]
[1771059167794,1.7e-07,69750.0,69749.0,0.014345]
[1771059167992,0.014342,69763.0,69749.0,0.01448]
[1771059168192,0.014342,69759.0,69749.0,0.01723676]
[1771059168501,0.01448,69766.0,69750.0,0.00275676]
[1771059168683,0.014341,69764.0,69749.0,0.01448]
[1771059168889,0.014341,69764.0,69758.0,0.014342]
[1771059169090,0.014341,69764.0,69759.0,0.014342]
[1771059169291,9e-07,69750.0,69749.0,0.01448]
[1771059169491,3.3e-07,69750.0,69749.0,0.01448]
[1771059169698,0.014341,69767.0,69762.0,0.014342]
[1771059169901,0.01434,69769.0,69764.0,0.014341]
[1771059170194,0.014341,69767.0,69756.0,0.01448]
[1771059170395,0.01448,69768.0,69756.0,0.01448]
[1771059170596,0.014341,69767.0,69758.0,0.014343]
[1771059170796,0.04348,69771.0,69755.0,0.14348]
[1771059170999,0.014338,69781.0,69772.0,0.01434]
[1771059171000,0.030719,69777.0,69772.0,0.01434]
[1771059171297,0.030719,69777.0,69771.0,0.01434]
[1771059171500,0.030719,69777.0,69772.0,0.01434]
[1771059171501,0.01638,69777.0,69772.0,0.01434]
[1771059171801,0.0019,69777.0,69773.0,0.014339]
[1771059172099,0.0019,69777.0,69763.0,0.157822]
[1771059172100,8.1e-07,69764.0,69763.0,0.16109238]
[1771059172298,0.01434,69773.0,69768.0,0.014341]
[1771059172500,3.5e-07,69765.0,69764.0,0.00327038]
[1771059172694,9.4e-07,69765.0,69764.0,0.01448]
[1771059172890,0.016239,69777.0,69772.0,0.01434]
[1771059173400,9e-08,69765.0,69764.0,0.02094955]
[1771059173700,3.3e-07,69765.0,69764.0,0.02094955]
[1771059173893,0.016239,69777.0,69767.0,0.014341]
[1771059174097,0.016239,69777.0,69764.0,0.00646955]
[1771059174098,3e-07,69765.0,69764.0,0.00646955]
[1771059174290,0.016239,69777.0,69765.0,0.01210393]
[1771059174495,0.016239,69777.0,69764.0,0.01448]
[1771059174496,3.6e-07,69765.0,69764.0,0.028821]
[1771059174693,0.0019,69777.0,69771.0,0.01434]
[1771059174894,3e-07,69765.0,69764.0,0.014341]
[1771059175095,6.8e-07,69765.0,69764.0,0.01448]
[1771059175291,0.0019,69777.0,69774.0,0.014339]
[1771059175497,0.016239,69777.0,69769.0,0.01434]
[1771059175803,5.9e-07,69765.0,69764.0,0.014341]
[1771059175998,0.014339,69774.0,69769.0,0.01434]
[1771059176202,0.0019,69777.0,69764.0,0.028821]
[1771059176203,7.4e-07,69765.0,69764.0,0.014341]
[1771059176503,0.0003419,69767.0,69766.0,0.014341]
[1771059176692,0.014337,69786.0,69781.0,0.014338]
[1771059176900,0.014337,69788.0,69776.0,0.014339]
[1771059176901,0.014337,69787.0,69782.0,0.014338]
[1771059177100,0.014338,69784.0,69775.0,0.01448]
[1771059177296,0.014337,69786.0,69775.0,0.01448]
[1771059177503,0.014337,69785.0,69780.0,0.014338]
[1771059177697,0.014337,69785.0,69776.0,0.01448]
[1771059177892,0.014337,69786.0,69776.0,0.028819]
[1771059178098,3.6e-07,69773.0,69772.0,0.04831876]
[1771059178405,1e-07,69773.0,69772.0,0.07277534]
[1771059178603,0.014337,69785.0,69772.0,0.05843534]
[1771059178801,0.014337,69785.0,69780.0,0.014338]
[1771059179105,9e-07,69773.0,69772.0,0.04395534]
[1771059179307,9e-07,69773.0,69772.0,0.05843534]
[1771059179605,0.014337,69786.0,69781.0,0.014338]
[1771059179800,0.02864789,69785.0,69777.0,0.014339]
[1771059180001,3.1e-07,69773.0,69772.0,0.05829534]
[1771059180197,0.02864452,69773.0,69772.0,0.06112698]
[1771059180395,0.14344,69790.0,69774.0,0.00269164]
[1771059180600,0.01448,69792.0,69785.0,0.014337]
[1771059180799,0.01448,69792.0,69772.0,0.05843534]
[1771059180800,2.8e-07,69775.0,69772.0,0.08647034]
[1771059180995,3.8e-07,69775.0,69773.0,0.01448]
[1771059181200,0.014338,69783.0,69777.0,0.014339]
[1771059181409,2.8e-07,69775.0,69771.0,0.01434]
[1771059181607,2.1e-07,69767.0,69766.0,0.157781]
[1771059181906,0.014339,69776.0,69767.0,0.014341]
[1771059182206,3e-07,69767.0,69766.0,0.172261]
[1771059182406,0.5840814,69785.0,69772.0,0.01434]
[1771059182407,0.014338,69782.0,69772.0,0.01434]
[1771059182603,0.157777,69788.0,69783.0,0.014337]
[1771059182905,0.157777,69788.0,69784.0,0.014337]
[1771059182906,0.01448,69787.0,69784.0,0.014337]
[1771059183107,0.01448,69787.0,69783.0,0.014337]
[1771059183296,0.028817,69787.0,69782.0,0.014338]
[1771059183500,3e-07,69774.0,69761.0,0.014342]
[1771059183698,0.05732132,69774.0,69773.0,0.01434]
[1771059183904,0.028674,69785.0,69780.0,0.014338]
[1771059184106,1.1e-07,69774.0,69772.0,0.01434]
[1771059184295,0.014337,69785.0,69779.0,0.014338]
[1771059184501,8.7e-07,69774.0,69773.0,0.01434]
[1771059184696,0.014337,69786.0,69773.0,0.01448]
[1771059185007,5e-08,69774.0,69773.0,0.01448]
[1771059185200,0.014337,69786.0,69780.0,0.014338]
[1771059185402,0.014337,69786.0,69780.0,0.028676]
[1771059185705,0.014337,69786.0,69780.0,0.014338]
[1771059185905,0.028816,69789.0,69773.0,0.014339]
[1771059185906,4.3e-07,69774.0,69773.0,0.014339]
[1771059186101,6.6e-07,69774.0,69773.0,0.014339]
[1771059186405,0.01448,69788.0,69773.0,0.01448]
[1771059186606,0.01448,69788.0,69774.0,0.014339]
[1771059186807,0.01448,69788.0,69784.0,0.014337]
[1771059187004,0.028816,69789.0,69780.0,0.014338]
[1771059187305,4.1e-07,69776.0,69775.0,0.014339]
[1771059187610,0.028816,69789.0,69783.0,0.014337]
[1771059187812,3.8e-07,69776.0,69775.0,0.014339]
[1771059188011,0.01448,69789.0,69775.0,0.028819]
[1771059188207,0.014337,69788.0,69783.0,0.014337]
[1771059188408,0.014337,69788.0,69782.0,0.014338]
[1771059188609,8e-07,69776.0,69775.0,0.01448]
[1771059188910,0.014337,69788.0,69783.0,0.014337]
[1771059189113,2.3e-07,69776.0,69775.0,0.01448]
[1771059189413,0.00933723,69788.0,69783.0,0.014337]
[1771059189622,8e-07,69776.0,69775.0,0.01448]
[1771059189912,7.9e-07,69776.0,69775.0,0.01448]
[1771059190307,7.9e-07,69776.0,69775.0,0.029819]
[1771059190503,0.04297982,69776.0,69775.0,0.01548]
[1771059190709,0.014336,69789.0,69784.0,0.014337]
[1771059191013,6.2e-07,69776.0,69775.0,0.01548]
[1771059191215,0.014336,69789.0,69780.0,0.014338]
[1771059191513,9.7e-07,69776.0,69775.0,0.01548]
[1771059191715,0.01448,69790.0,69786.0,0.014337]
[1771059192007,0.01448,69790.0,69775.0,0.01448]
[1771059192008,0.014336,69789.0,69775.0,0.01448]
[1771059192207,0.028816,69790.0,69785.0,0.014337]
[1771059192404,0.014336,69791.0,69786.0,0.014337]
[1771059192707,0.014336,69789.0,69785.0,0.014337]
[1771059193112,0.014336,69789.0,69775.0,0.01548]
[1771059193308,0.01448,69790.0,69775.0,0.01548]
[1771059193309,8.4e-07,69776.0,69775.0,0.01548]
[1771059193509,0.028816,69790.0,69784.0,0.014337]
[1771059193810,0.028816,69790.0,69775.0,0.028819]
[1771059193811,5.4e-07,69777.0,69775.0,0.014339]
[1771059194011,0.01448,69792.0,69790.0,0.014336]
[1771059194315,5e-07,69780.0,69779.0,0.014338]
[1771059194610,0.01448,69793.0,69791.0,0.014336]
[1771059194809,3e-07,69780.0,69777.0,0.12]
[1771059195014,0.014335,69796.0,69777.0,0.12]
[1771059195313,0.014335,69797.0,69777.0,0.12]
[1771059195314,0.172215,69795.0,69778.0,0.01448]
[1771059195611,0.15788,69795.0,69778.0,0.01448]
[1771059195912,0.01448,69798.0,69795.0,0.014335]
[1771059196111,0.01448,69797.0,69785.0,0.00017483]
[1771059196312,0.01448,69798.0,69794.0,0.014335]
[1771059196509,0.01448,69798.0,69786.0,0.01448]
[1771059196706,1.1e-07,69785.0,69783.0,0.028674]
[1771059196912,0.01448,69798.0,69784.0,0.028817]
[1771059196913,0.028814,69798.0,69784.0,0.028817]
[1771059197108,4.2e-07,69785.0,69784.0,0.01448]
[1771059197312,0.014335,69795.0,69790.0,0.014336]